fUST/lending_fUST_20240705
["ID","MTS","AMOUNT","RATE_DAILY","PERIOD"]
[331242280,1720153847758,-257.26552659,0.00041484,30]
[331242282,1720153847777,-262.00590154,0.00041496,30]
[331242284,1720153847787,-174.716494,0.00041497,30]
[331242286,1720153847797,-149.997358,0.00041497,30]
[331242288,1720153847807,-149.99736,0.00041497,30]
[331242290,1720153847818,-174.716494,0.00041497,30]
[331242292,1720153847828,-262.00590154,0.00041567,30]
[331242294,1720153847837,-999.0,0.00041643,120]
[331242296,1720153847847,-289.63333445,0.0004185,30]
[331242298,1720153847859,-169.4,0.00041857,31]
[331242299,1720153847869,-152.0,0.00041857,31]
[331242300,1720153847878,-151.0,0.00041863,120]
[331242301,1720153847888,-257.26552659,0.00041886,30]
[331242303,1720153847897,-251.4237794,0.00041917,30]
[331242305,1720153847907,-999.0,0.00041917,120]
[331242307,1720153847917,-244.11093245,0.00041941,4]
[331242308,1720153847927,-150.0,0.00041977,60]
[331242310,1720153847936,-251.4237794,0.00042076,30]
[331242312,1720153847947,-251.4237794,0.00042121,30]
[331242313,1720153847956,-151.02721061,0.00042137,30]
[331242314,1720153847965,-194.8,0.00042158,31]
[331242315,1720153847975,-174.716494,0.00042188,30]
[331242316,1720153847984,-149.997358,0.00042188,30]
[331242317,1720153847993,-999.0,0.00042191,120]
[331242318,1720153848003,-160.696,0.00042203,2]
[331242319,1720153848013,-158.246,0.00042203,2]
[331242320,1720153848027,-150.30016482,0.00042284,30]
[331242321,1720153848037,-175.66791452,0.00042402,30]
[331242322,1720153848047,-999.0,0.00042465,120]
[331242323,1720153848057,-278.37974001,0.000425,30]
[331242324,1720153848068,-151.0,0.00042575,120]
[331242325,1720153848078,-999.0,0.00042739,120]
[331242326,1720153848088,-151.0,0.00042795,120]
[331242327,1720153848098,-162.06706363,0.00042837,30]
[331242328,1720153848107,-251.4237794,0.0004287,30]
[331242329,1720153848118,-174.716494,0.0004288,30]
[331242330,1720153848128,-149.997358,0.0004288,30]
[331242331,1720153848139,-1000.0,0.00043,120]
[331242332,1720153848149,-352.30899038,0.00043,120]
[331242333,1720153848159,-3136.49302514,0.00043,30]
[331242334,1720153848168,-999.0,0.00043013,120]
[331242335,1720153848180,-150.558,0.00043037,2]
[331242336,1720153848191,-880.098,0.00043037,2]
[331242337,1720153848201,-169.4,0.00043038,31]
[331242338,1720153848212,-152.0,0.00043038,31]
[331242339,1720153848222,-251.4237794,0.00043042,30]
[331242340,1720153848231,-159.71091917,0.00043063,30]
[331242341,1720153848241,-210.0,0.00043151,90]
[331242342,1720153848251,-156.0,0.00043151,90]
[331242343,1720153848261,-539.44060081,0.0004317,120]
[331242344,1720153848273,-999.0,0.00043287,120]
[331242345,1720153848282,-863.9455592,0.00043324,91]
[331242346,1720153848292,-999.0,0.00043561,120]
[331242347,1720153848301,-174.716494,0.00043572,30]
[331242348,1720153848311,-149.997358,0.00043572,30]
[331242349,1720153848321,-289.63333445,0.00043677,30]
[331242350,1720153848330,-151.02721061,0.00043689,30]
[331242351,1720153848340,-151.0,0.00043726,120]
[331242352,1720153848350,-251.4237794,0.00043741,30]
[331242353,1720153848360,-5638.29959588,0.000438,60]
[331242354,1720153848370,-999.0,0.00043835,120]
[331242355,1720153848380,-151.0,0.00043863,120]
[331242356,1720153848389,-289.63333445,0.00043953,30]
[331242357,1720153848398,-257.26552659,0.00043996,30]
[331242358,1720153848408,-249.17009153,0.00044,90]
[331242359,1720153848417,-154.74467129,0.00044,120]
[331242360,1720153848426,-251.4237794,0.00044035,30]
[331242361,1720153848436,-194.8,0.000441,31]
[331242362,1720153848446,-1250.585542,0.000441,14]
[331242363,1720153848456,-1250.585542,0.000441,14]
[331242364,1720153848465,-735.459512,0.000441,14]
[331242365,1720153848474,-735.459512,0.000441,14]
[331242366,1720153848484,-999.0,0.00044109,120]
[331242367,1720153848493,-169.4,0.00044219,31]
[331242368,1720153848503,-152.0,0.00044219,31]
[331242369,1720153848512,-999.0,0.00044383,120]
[331242370,1720153848524,-262.00590154,0.00044395,30]
[331242371,1720153848533,-175.66791452,0.00044457,30]
[331242372,1720153848543,-289.63333445,0.00044476,30]
[331242373,1720153848552,-157.851282,0.00044476,14]
[331242374,1720153848561,-829.582308,0.00044476,14]
[331242375,1720153848570,-157.851282,0.00044476,14]
[331242376,1720153848579,-829.582308,0.00044476,14]
[331242377,1720153848588,-161.876773,0.00044476,14]
[331242378,1720153848598,-161.876773,0.00044476,14]
[331242379,1720153848606,-1575.348786,0.00044476,14]
[331242380,1720153848615,-1575.348786,0.00044476,14]
[331242381,1720153848624,-157.40418,0.00044476,14]
[331242382,1720153848634,-251.4237794,0.00044544,30]
[331242383,1720153848643,-262.00590154,0.00044606,30]
[331242384,1720153848653,-151.02721061,0.00044653,30]
[331242385,1720153848662,-999.0,0.00044657,120]
[331242386,1720153848747,-151.0,0.00044658,120]
[331242387,1720153848756,-159.71091917,0.00044678,30]
[331242388,1720153848769,-153.17104864,0.00044719,30]
[331242389,1720153848786,-289.63333445,0.00044737,30]
[331242390,1720153848796,-262.00590154,0.00044757,30]
[331242391,1720153848806,-289.63333445,0.00044867,30]
[331242392,1720153848817,-999.0,0.00044931,120]
[331242393,1720153848826,-427.25903295,0.00045,120]
[331242394,1720153848836,-151.0,0.00045151,120]
[331242395,1720153848848,-166.7789154,0.00045192,30]
[331242396,1720153848861,-150.0,0.00045203,2]
[331242397,1720153848869,-999.0,0.00045205,120]
[331242398,1720153848879,-157.0,0.00045308,90]
[331242399,1720153848889,-211.0,0.00045308,90]
[331242400,1720153848898,-169.4,0.000454,31]
[331242401,1720153848908,-152.0,0.000454,31]
[331242402,1720153848917,-999.0,0.00045479,120]
[331242403,1720153848927,-750.0,0.00045494,2]
[331242404,1720153848936,-151.0,0.00045589,120]
[331242405,1720153848945,-289.63333445,0.0004561,30]
[331242406,1720153848958,-289.63333445,0.00045668,30]
[331242407,1720153848968,-262.00590154,0.00045675,30]
[331242408,1720153848979,-153.17104864,0.00045678,30]
[331242409,1720153848989,-999.0,0.00045753,120]
[331242410,1720153848998,-153.17104864,0.00045759,30]
[331242411,1720153849008,-262.00590154,0.00045761,30]
[331242412,1720153849026,-379.94701281,0.000458,30]
[331242413,1720153849035,-440.38623798,0.00046,120]
[331242414,1720153849046,-550.930051,0.00046,30]
[331242415,1720153849056,-999.0,0.00046027,120]
[331242416,1720153849065,-150.0,0.00046037,2]
[331242417,1720153849075,-877.0,0.00046037,2]
[331242418,1720153849084,-194.8,0.00046042,31]
[331242419,1720153849094,-257.26552659,0.00046191,30]
[331242420,1720153849103,-153.17104864,0.00046275,30]
[331242421,1720153849113,-999.0,0.00046301,120]
[331242422,1720153849123,-262.00590154,0.00046421,30]
[331242423,1720153849133,-151.0,0.00046438,120]
[331242424,1720153849143,-257.26552659,0.00046483,30]
[331242425,1720153849152,-257.26552659,0.00046484,30]
[331242426,1720153849162,-151.0,0.00046521,120]
[331242427,1720153849171,-999.0,0.00046575,120]
[331242428,1720153849183,-159.379226,0.00046575,2]
[331242429,1720153849193,-169.4,0.00046581,60]
[331242430,1720153849203,-152.0,0.00046581,60]
[331242431,1720153849212,-153.17104864,0.00046592,30]
[331242432,1720153849222,-151.49,0.00046733,2]
[331242433,1720153849231,-262.00590154,0.00046781,30]
[331242434,1720153849241,-999.0,0.00046849,120]
[331242435,1720153849253,-159.71091917,0.00046873,30]
[331242436,1720153849272,-100623.8131356,0.00047,5]
[331242437,1720153849282,-3003.65946529,0.00047,7]
[331242438,1720153849292,-1250.585542,0.00047,14]
[331242439,1720153849301,-1250.58553892,0.00047,14]
[331242440,1720153849309,-735.459512,0.00047,14]
[331242441,1720153849319,-157.851282,0.00047,14]
[331242442,1720153849329,-735.459517,0.00047,14]
[331242443,1720153849338,-829.582308,0.00047,14]
[331242444,1720153849348,-157.851282,0.00047,14]
[331242445,1720153849358,-829.582308,0.00047,14]
[331242446,1720153849367,-161.876773,0.00047,14]
[331242447,1720153849376,-161.876773,0.00047,14]
[331242448,1720153849386,-1575.348786,0.00047,14]
[331242449,1720153849396,-1575.348786,0.00047,14]
[331242450,1720153849405,-251.4237794,0.00047009,30]
[331242451,1720153849415,-289.63333445,0.00047096,30]
[331242452,1720153849425,-802.19413252,0.00047123,120]
[331242453,1720153849436,-289.63333445,0.00047136,30]
[331242454,1720153849446,-262.00590154,0.00047217,30]
[331242455,1720153849455,-162.06706363,0.00047424,30]
[331242456,1720153849464,-151.0,0.00047452,120]
[331242457,1720153849474,-262.00590154,0.00047457,30]
[331242458,1720153849484,-257.26552659,0.00047551,30]
[331242459,1720153849493,-251.4237794,0.00047598,30]
[331242460,1720153849503,-151.0,0.00047726,120]
[331242461,1720153849514,-169.4,0.00047763,60]
[331242462,1720153849525,-152.0,0.00047763,60]
[331242463,1720153849534,-289.63333461,0.00047779,30]
[331242464,1720153849543,-194.8,0.00047984,60]
[331242465,1720153849553,-150.30016482,0.00047986,30]
[331242466,1720153849563,-1000.0,0.00048,120]
[331242467,1720153849572,-440.38623797,0.00048,120]
[331242468,1720153849581,-268493.107267,0.00048,10]
[331242469,1720153849590,-400.0,0.00048,30]
[331242470,1720153849599,-162.06706364,0.00048131,30]
[331242471,1720153849609,-151.02721061,0.0004817,30]
[331242472,1720153849618,-150.0,0.00048203,2]
[331242473,1720153849627,-210.0,0.00048329,90]
[331242474,1720153849636,-159.71091917,0.00048332,30]
[331242475,1720153849645,-159.71091917,0.00048349,30]
[331242476,1720153849655,-151.0,0.00048384,120]
[331242477,1720153849664,-251.4237794,0.00048768,30]
[331242478,1720153849673,-197.35,0.00048904,2]
[331242479,1720153849682,-151.02721069,0.00048921,30]
[331242480,1720153849691,-169.4,0.00048944,60]
[331242481,1720153849701,-152.0,0.00048944,60]
[331242482,1720153849711,-150.5,0.0004897,62]
[331242483,1720153849720,-150.5,0.0004898,62]
[331242484,1720153849729,-150.5,0.0004899,62]
[331242485,1720153849739,-3612.0,0.00049,120]
[331242486,1720153849748,-1325.75623028,0.00049,120]
[331242487,1720153849758,-151.0,0.00049014,120]
[331242488,1720153849772,-159.29834161,0.00049017,30]
[331242489,1720153849783,-251.4237794,0.00049026,30]
[331242490,1720153849792,-150.0,0.00049037,2]
[331242491,1720153849802,-877.0,0.00049037,2]
[331242492,1720153849811,-1298.76013475,0.00049278,60]
[331242493,1720153849822,-2500.0,0.00049284,120]
[331242494,1720153849831,-492.59560194,0.00049284,120]
[331242495,1720153849840,-560.0,0.00049288,120]
[331242496,1720153849849,-560.0,0.00049288,120]
[331242497,1720153849862,-560.0,0.00049288,120]
[331242498,1720153849872,-560.0,0.00049288,120]
[331242499,1720153849882,-560.0,0.00049288,120]
[331242500,1720153849891,-560.0,0.00049288,120]
[331242501,1720153849900,-560.0,0.00049288,120]
[331242502,1720153849910,-560.0,0.00049288,120]
[331242503,1720153849919,-560.0,0.00049288,120]
[331242504,1720153849928,-560.0,0.00049288,120]
[331242505,1720153849937,-560.0,0.00049288,120]
[331242506,1720153849947,-560.0,0.00049288,120]
[331242507,1720153849957,-560.0,0.00049288,120]
[331242508,1720153849967,-560.0,0.00049288,120]
[331242509,1720153849976,-560.0,0.00049288,120]
[331242510,1720153849985,-560.0,0.00049288,120]
[331242511,1720153850061,-560.0,0.00049288,120]
[331242512,1720153850077,-560.0,0.00049288,120]
[331242513,1720153850086,-560.0,0.00049288,120]
[331242514,1720153850096,-560.0,0.00049288,120]
[331242515,1720153850105,-560.0,0.00049288,120]
[331242516,1720153850114,-560.0,0.00049288,120]
[331242517,1720153850123,-560.0,0.00049288,120]
[331242518,1720153850132,-560.0,0.00049288,120]
[331242519,1720153850142,-560.0,0.00049288,120]
[331242520,1720153850152,-560.0,0.00049288,120]
[331242521,1720153850162,-560.0,0.00049288,120]
[331242522,1720153850171,-560.0,0.00049288,120]
[331242523,1720153850181,-560.0,0.00049288,120]
[331242524,1720153850191,-560.0,0.00049288,120]
[331242525,1720153850201,-560.0,0.00049288,120]
[331242526,1720153850211,-560.0,0.00049288,120]
[331242527,1720153850220,-560.0,0.00049288,120]
[331242528,1720153850229,-560.0,0.00049288,120]
[331242529,1720153850239,-560.0,0.00049288,120]
[331242530,1720153850249,-153.0,0.00049288,120]
[331242531,1720153850259,-560.0,0.00049288,120]
[331242532,1720153850273,-560.0,0.00049288,120]
[331242533,1720153850282,-560.0,0.00049288,120]
[331242534,1720153850291,-560.0,0.00049288,120]
[331242535,1720153850300,-560.0,0.00049288,120]
[331242536,1720153850309,-560.0,0.00049288,120]
[331242537,1720153850318,-560.0,0.00049288,120]
[331242538,1720153850327,-560.0,0.00049288,120]
[331242539,1720153850337,-560.0,0.00049288,120]
[331242540,1720153850346,-560.0,0.00049288,120]
[331242541,1720153850355,-560.0,0.00049288,120]
[331242542,1720153850365,-560.0,0.00049288,120]
[331242543,1720153850375,-560.0,0.00049288,120]
[331242544,1720153850384,-560.0,0.00049288,120]
[331242545,1720153850393,-560.0,0.00049288,120]
[331242546,1720153850403,-560.0,0.00049288,120]
[331242547,1720153850414,-560.0,0.00049288,120]
[331242548,1720153850423,-560.0,0.00049288,120]
[331242549,1720153850433,-560.0,0.00049288,120]
[331242550,1720153850442,-560.0,0.00049288,120]
[331242551,1720153850451,-560.0,0.00049288,120]
[331242552,1720153850461,-560.0,0.00049288,120]
[331242553,1720153850471,-560.0,0.00049288,120]
[331242554,1720153850481,-560.0,0.00049288,120]
[331242555,1720153850491,-560.0,0.00049288,120]
[331242556,1720153850501,-560.0,0.00049288,120]
[331242557,1720153850511,-560.0,0.00049288,120]
[331242558,1720153850524,-560.0,0.00049288,120]
[331242559,1720153850534,-560.0,0.00049288,120]
[331242560,1720153850544,-153.0,0.00049288,120]
[331242561,1720153850555,-560.0,0.00049288,120]
[331242562,1720153850565,-560.0,0.00049288,120]
[331242563,1720153850575,-560.0,0.00049288,120]
[331242564,1720153850585,-560.0,0.00049288,120]
[331242565,1720153850595,-560.0,0.00049288,120]
[331242566,1720153850605,-560.0,0.00049288,120]
[331242567,1720153850614,-560.0,0.00049288,120]
[331242568,1720153850624,-153.0,0.00049288,120]
[331242569,1720153850633,-560.0,0.00049288,120]
[331242570,1720153850642,-560.0,0.00049288,120]
[331242571,1720153850651,-560.0,0.00049288,120]
[331242572,1720153850661,-560.0,0.00049288,120]
[331242573,1720153850671,-560.0,0.00049288,120]
[331242574,1720153850680,-560.0,0.00049288,120]
[331242575,1720153850690,-560.0,0.00049288,120]
[331242576,1720153850699,-560.0,0.00049288,120]
[331242577,1720153850708,-560.0,0.00049288,120]
[331242578,1720153850718,-560.0,0.00049288,120]
[331242579,1720153850727,-560.0,0.00049288,120]
[331242580,1720153850736,-153.0,0.00049288,120]
[331242581,1720153850746,-500.0,0.00049315,120]
[331242582,1720153850755,-177.04694264,0.00049315,120]
[331242583,1720153850767,-500.0,0.00049315,120]
[331242584,1720153850784,-500.0,0.00049315,120]
[331242585,1720153850793,-500.26428317,0.00049315,120]
[331242586,1720153850802,-500.0,0.00049315,120]
[331242587,1720153850812,-500.0,0.00049315,120]
[331242588,1720153850824,-500.50633888,0.00049315,120]
[331242589,1720153850834,-500.0,0.00049315,120]
[331242590,1720153850843,-500.0,0.00049315,120]
[331242591,1720153850852,-500.0,0.00049315,120]
[331242592,1720153850864,-616.11810694,0.00049315,120]
[331242593,1720153850873,-500.0,0.00049315,120]
[331242594,1720153850882,-500.0,0.00049315,120]
[331242595,1720153850893,-501.84269159,0.00049315,120]
[331242596,1720153850902,-500.0,0.00049315,120]
[331242597,1720153850912,-500.0,0.00049315,120]
[331242598,1720153850921,-549.22048197,0.00049315,120]
[331242599,1720153850931,-500.0,0.00049315,120]
[331242600,1720153850940,-500.0,0.00049315,120]
[331242601,1720153850951,-504.13004759,0.00049315,120]
[331242602,1720153850962,-548.36201254,0.00049315,120]
[331242603,1720153850972,-153.94307983,0.00049315,120]
[331242604,1720153850981,-500.0,0.00049315,120]
[331242605,1720153850991,-500.0,0.00049315,120]
[331242606,1720153851001,-500.0,0.00049315,120]
[331242607,1720153851010,-445.93795859,0.00049315,120]
[331242608,1720153851022,-500.0,0.00049315,120]
[331242609,1720153851031,-501.57882944,0.00049315,120]
[331242610,1720153851041,-500.0,0.00049315,120]
[331242611,1720153851062,-500.289577,0.00049315,120]
[331242612,1720153851072,-500.0,0.00049315,120]
[331242613,1720153851082,-408.99966565,0.00049315,120]
[331242614,1720153851091,-500.0,0.00049315,120]
[331242615,1720153851101,-423.29069967,0.00049315,120]
[331242616,1720153851110,-501.30578587,0.00049315,120]
[331242617,1720153851119,-500.0,0.00049315,120]
[331242618,1720153851129,-501.43173321,0.00049315,120]
[331242619,1720153851138,-501.25458695,0.00049315,120]
[331242620,1720153851148,-500.0,0.00049315,120]
[331242621,1720153851157,-500.0,0.00049315,120]
[331242622,1720153851167,-500.90321824,0.00049315,120]
[331242623,1720153851176,-1011.02017474,0.00049315,120]
[331242624,1720153851187,-500.0,0.00049315,120]
[331242625,1720153851196,-500.0,0.00049315,120]
[331242626,1720153851205,-500.0,0.00049315,120]
[331242627,1720153851215,-500.0,0.00049315,120]
[331242628,1720153851293,-500.0,0.00049315,120]
[331242629,1720153851303,-500.0,0.00049315,120]
[331242630,1720153851317,-186.42281924,0.00049315,120]
[331242631,1720153851326,-501.10277195,0.00049315,120]
[331242632,1720153851336,-500.0,0.00049315,120]
[331242633,1720153851345,-500.0,0.00049315,120]
[331242634,1720153851354,-501.71499339,0.00049315,120]
[331242635,1720153851364,-500.0,0.00049315,120]
[331242636,1720153851373,-500.0,0.00049315,120]
[331242637,1720153851382,-501.08694703,0.00049315,120]
[331242638,1720153851392,-500.0,0.00049315,120]
[331242639,1720153851400,-181.37901518,0.00049315,120]
[331242640,1720153851410,-502.97208518,0.00049315,120]
[331242641,1720153851419,-500.0,0.00049315,120]
[331242642,1720153851428,-500.0,0.00049315,120]
[331242643,1720153851438,-500.0,0.00049315,14]
[331242644,1720153851448,-500.0,0.00049315,120]
[331242645,1720153851458,-509.01324042,0.00049315,120]
[331242646,1720153851467,-502.15950612,0.00049315,120]
[331242647,1720153851476,-500.0,0.00049315,120]
[331242648,1720153851486,-501.24138291,0.00049315,120]
[331242649,1720153851496,-293.31676242,0.00049315,120]
[331242650,1720153851507,-500.0,0.00049315,120]
[331242651,1720153851522,-502.50248708,0.00049315,120]
[331242652,1720153851531,-501.73781168,0.00049315,120]
[331242653,1720153851541,-500.0,0.00049315,20]
[331242654,1720153851554,-323.57124431,0.00049315,120]
[331242655,1720153851564,-502.59336999,0.00049315,30]
[331242656,1720153851576,-500.0,0.00049315,120]
[331242657,1720153851585,-500.0,0.00049315,120]
[331242658,1720153851596,-500.0,0.00049315,120]
[331242659,1720153851606,-500.0,0.00049315,120]
[331242660,1720153851616,-1000.0,0.00049315,120]
[331242661,1720153851626,-1000.0,0.00049315,120]
[331242662,1720153851636,-1000.0,0.00049315,120]
[331242663,1720153851646,-1000.0,0.00049315,120]
[331242664,1720153851656,-1000.0,0.00049315,120]
[331242665,1720153851666,-500.0,0.00049315,120]
[331242666,1720153851676,-1000.0,0.00049315,120]
[331242667,1720153851686,-1000.0,0.00049315,120]
[331242668,1720153851696,-1000.0,0.00049315,120]
[331242669,1720153851705,-600.0,0.00049315,120]
[331242670,1720153851715,-1000.0,0.00049315,120]
[331242671,1720153851724,-600.0,0.00049315,120]
[331242672,1720153851734,-651.96272328,0.00049315,120]
[331242673,1720153851744,-600.0,0.00049315,120]
[331242674,1720153851753,-600.0,0.00049315,120]
[331242675,1720153851763,-501.71050619,0.00049315,120]
[331242676,1720153851783,-600.0,0.00049315,120]
[331242677,1720153851793,-500.0,0.00049315,120]
[331242678,1720153851803,-600.0,0.00049315,120]
[331242679,1720153851812,-600.0,0.00049315,120]
[331242680,1720153851822,-600.0,0.00049315,120]
[331242681,1720153851837,-600.0,0.00049315,120]
[331242682,1720153851858,-268.60953868,0.00049315,120]
[331242683,1720153851875,-500.0,0.00049315,120]
[331242684,1720153851897,-500.0,0.00049315,120]
[331242685,1720153851919,-501.59612756,0.00049315,120]
[331242686,1720153851938,-500.0,0.00049315,120]
[331242687,1720153851957,-500.0,0.00049315,120]
[331242688,1720153851974,-500.0,0.00049315,120]
[331242689,1720153851991,-496.73918356,0.00049315,120]
[331242690,1720153852009,-500.0,0.00049315,120]
[331242691,1720153852039,-500.0,0.00049315,120]
[331242692,1720153852053,-500.0,0.00049315,120]
[331242693,1720153852068,-500.0,0.00049315,120]
[331242694,1720153852085,-501.52079868,0.00049315,120]
[331242695,1720153852102,-500.0,0.00049315,120]
[331242696,1720153852116,-501.4423934,0.00049315,120]
[331242697,1720153852130,-500.0,0.00049315,120]
[331242698,1720153852144,-500.0,0.00049315,120]
[331242699,1720153852159,-503.13037073,0.00049315,120]
[331242700,1720153852174,-500.0,0.00049315,120]
[331242701,1720153852190,-453.17560806,0.00049315,120]
[331242702,1720153852205,-497.28279323,0.00049315,120]
[331242703,1720153852220,-218.86439233,0.00049315,120]
[331242704,1720153852235,-500.0,0.00049315,120]
[331242705,1720153852249,-500.0,0.00049315,120]
[331242706,1720153852269,-500.0,0.00049315,120]
[331242707,1720153852284,-500.0,0.00049315,7]
[331242708,1720153852298,-500.0,0.00049315,120]
[331242709,1720153852311,-500.0,0.00049315,120]
[331242710,1720153852325,-503.56587276,0.00049315,120]
[331242711,1720153852340,-501.40897098,0.00049315,120]
[331242712,1720153852354,-205.07091715,0.00049315,120]
[331242713,1720153852368,-500.0,0.00049315,120]
[331242714,1720153852383,-500.0,0.00049315,120]
[331242715,1720153852397,-501.64602299,0.00049315,120]
[331242716,1720153852411,-500.0,0.00049315,120]
[331242717,1720153852426,-500.60494766,0.00049315,120]
[331242718,1720153852440,-500.0,0.00049315,120]
[331242719,1720153852454,-515.24129217,0.00049315,120]
[331242720,1720153852468,-501.56245493,0.00049315,120]
[331242721,1720153852484,-401.71469688,0.00049315,120]
[331242722,1720153852498,-500.0,0.00049315,120]
[331242723,1720153852513,-500.71678939,0.00049315,120]
[331242724,1720153852531,-500.0,0.00049315,120]
[331242725,1720153852545,-500.0,0.00049315,120]
[331242726,1720153852560,-500.87355856,0.00049315,120]
[331242727,1720153852574,-500.0,0.00049315,120]
[331242728,1720153852589,-500.0,0.00049315,120]
[331242729,1720153852602,-235.6,0.00049315,7]
[331242730,1720153852612,-514.29049693,0.00049315,120]
[331242731,1720153852622,-500.0,0.00049315,120]
[331242732,1720153852632,-500.0,0.00049315,120]
[331242733,1720153852642,-502.04294716,0.00049315,120]
[331242734,1720153852774,-500.0,0.00049315,120]
[331242735,1720153852797,-1000.0,0.00049315,120]
[331242736,1720153852807,-501.36995227,0.00049315,120]
[331242737,1720153852820,-500.0,0.00049315,120]
[331242738,1720153852829,-504.56609277,0.00049315,120]
[331242739,1720153852838,-502.88898275,0.00049315,120]
[331242740,1720153852847,-500.0,0.00049315,120]
[331242741,1720153852858,-500.0,0.00049315,120]
[331242742,1720153852867,-500.0,0.00049315,120]
[331242743,1720153852876,-501.67381918,0.00049315,120]
[331242744,1720153852886,-501.5400647,0.00049315,120]
[331242745,1720153852895,-500.0,0.00049315,120]
[331242746,1720153852906,-504.88560819,0.00049315,120]
[331242747,1720153852915,-500.0,0.00049315,120]
[331242748,1720153852925,-500.0,0.00049315,120]
[331242749,1720153852934,-500.0,0.00049315,120]
[331242750,1720153852945,-500.0,0.00049315,120]
[331242751,1720153852955,-503.25694835,0.00049315,120]
[331242752,1720153852964,-500.0,0.00049315,120]
[331242753,1720153852974,-501.36700784,0.00049315,120]
[331242754,1720153852984,-500.0,0.00049315,120]
[331242755,1720153852993,-500.0,0.00049315,120]
[331242756,1720153853003,-500.0,0.00049315,120]
[331242757,1720153853012,-176.80168671,0.00049315,120]
[331242758,1720153853027,-502.52848443,0.00049315,120]
[331242759,1720153853036,-500.0,0.00049315,120]
[331242760,1720153853046,-501.61353724,0.00049315,120]
[331242761,1720153853055,-506.76019141,0.00049315,120]
[331242762,1720153853067,-500.0,0.00049315,120]
[331242763,1720153853076,-500.0,0.00049315,120]
[331242764,1720153853085,-508.69282222,0.00049315,120]
[331242765,1720153853094,-500.0,0.00049315,120]
[331242766,1720153853103,-500.0,0.00049315,120]
[331242767,1720153853112,-500.0,0.00049315,120]
[331242768,1720153853121,-502.23018756,0.00049315,30]
[331242769,1720153853130,-500.0,0.00049315,120]
[331242770,1720153853139,-506.94336316,0.00049315,120]
[331242771,1720153853148,-500.0,0.00049315,120]
[331242772,1720153853157,-508.04244426,0.00049315,120]
[331242773,1720153853166,-500.0,0.00049315,120]
[331242774,1720153853176,-500.0,0.00049315,120]
[331242775,1720153853187,-500.0,0.00049315,120]
[331242776,1720153853197,-504.07239927,0.00049315,120]
[331242777,1720153853208,-507.39663372,0.00049315,120]
[331242778,1720153853217,-501.2354765,0.00049315,120]
[331242779,1720153853227,-500.0,0.00049315,120]
[331242780,1720153853237,-500.0,0.00049315,120]
[331242781,1720153853246,-502.00355194,0.00049315,120]
[331242782,1720153853255,-500.0,0.00049315,120]
[331242783,1720153853271,-507.54558057,0.00049315,120]
[331242784,1720153853280,-500.0,0.00049315,120]
[331242785,1720153853290,-520.08255898,0.00049315,120]
[331242786,1720153853299,-500.0,0.00049315,120]
[331242787,1720153853308,-500.0,0.00049315,120]
[331242788,1720153853318,-237.33009608,0.00049315,120]
[331242789,1720153853328,-500.0,0.00049315,120]
[331242790,1720153853337,-632.5674419,0.00049315,120]
[331242791,1720153853347,-500.0,0.00049315,120]
[331242792,1720153853356,-511.64307378,0.00049315,120]
[331242793,1720153853366,-500.0,0.00049315,120]